[Event "1st Caplin Menchik Memorial 2022"]
[Site "London"]
[Date "2022.06.23"]
[Round "6.5"]
[White "Vidic, Teja"]
[Black "Koubova, Anna Marie"]
[Result "0-1"]
[ECO "D70"]
[WhiteElo "2168"]
[BlackElo "2115"]
[Annotator "NA RC"]
[PlyCount "90"]
[EventDate "2022.06.21"]
[EventType "tourn"]
[EventCountry "ENG"]
[SourceTitle "playchess.com"]
[Source "ChessBase"]
[SourceQuality "1"]
[TimeControl "5400+30"]

1. Nf3 {[%emt 0:00:03]} d5 {[%emt 0:02:17]} 2. c4 {[%emt 0:00:06]} c6 {[%emt 0:01:45]} 3. d4 {[%emt 0:00:05]} Nf6 {[%emt 0:01:00]} 4. e3 {[%emt 0:00:34]} g6 {[%emt 0:01:32]} 5. b3 {[%emt 0:04:30]} Bg7 {[%emt 0:00:11]} 6. Bb2 {[%emt 0:00:06]} O-O {[%emt 0:09:42]} 7. Bd3 {[%emt 0:02:34]} Bf5 {[%emt 0:07:58]} 8. Bxf5 {[%emt 0:11:19]} gxf5 {[%emt 0:00:06]} 9. Ne5 {[%emt 0:00:18]} Nbd7 {[%emt 0:01:31]} 10. f4 {[%emt 0:01:09]} Nxe5 {[%emt 0:08:54]} 11. fxe5 {[%emt 0:00:10]} Ne4 {[%emt 0:01:22]} 12. O-O {[%emt 0:00:14]} e6 {[%emt 0:01:09]} 13. Nd2 {[%emt 0:05:37]} Nxd2 {[%emt 0:08:18]} 14. Qxd2 {[%emt 0:00:06]} f6 {[%emt 0:00:22]} 15. exf6 {[%emt 0:04:51]} Rxf6 {[%emt 0:00:35]} 16. Rf3 {[%emt 0:01:09]} Rh6 {[%emt 0:04:15]} 17. Rc1 {[%emt 0:08:56]} Qd6 {[%emt 0:02:25]} 18. h3 {[%emt 0:00:24]} Rg6 {[%emt 0:01:04]} 19. Qa5 {[%emt 0:03:58]} Qd8 {[%emt 0:14:03]} 20. Qb4 {[%emt 0:09:25]} Rb8 {[%emt 0:00:29]} 21. Qc5 {[%emt 0:02:34]} Bf8 {[%emt 0:07:53]} 22. Qxa7 {[%emt 0:00:34]} Rg7 {[%emt 0:04:02]} 23. c5 {[%emt 0:09:10]} Ra8 {[%emt 0:00:27]} 24. Qb6 {[%emt 0:00:05]} Qxb6 {[%emt 0:00:45]} 25. cxb6 {[%emt 0:00:05]} Rxa2 {[%emt 0:00:10]} 26. Rb1 {[%emt 0:02:32]} Ra6 {[%emt 0:00:59]} 27. Bc3 {[%emt 0:00:28]} Rxb6 {[%emt 0:00:56]} 28. b4 {[%emt 0:00:16]} Bd6 {[%emt 0:02:19]} 29. Rf2 {[%emt 0:01:50]} Rg3 {[%emt 0:01:20]} 30. Re2 {[%emt 0:00:29]} Kf7 {[%emt 0:01:50]} 31. Be1 {[%emt 0:01:11]} Rg8 {[%emt 0:00:49]} 32. Ra2 {[%emt 0:01:57]} Rb5 {[%emt 0:05:05]} 33. Rbb2 {[%emt 0:04:10]} Ke7 {[%emt 0:00:52]} 34. Kf2 {[%emt 0:01:15]} e5 {[%emt 0:03:03]} 35. Bc3 {[%emt 0:01:40]} e4 {[%emt 0:01:38]} 36. Ra4 {[%emt 0:05:35]} Rg3 {[%emt 0:04:11]} 37. Ra5 {[%emt 0:03:06]} f4 {[%emt 0:00:46]} 38. Bd2 {[%emt 0:00:11]} f3 {[%emt 0:00:24]} 39. gxf3 {[%emt 0:00:42]} Rxf3+ {[%emt 0:00:17]} 40. Kg2 {[%emt 0:00:19]} Rg3+ {[%emt 0:00:16]} 41. Kf2 {[%emt 0:00:21]} Rxh3 {[%emt 0:00:14]} 42. Rxb5 {[%emt 0:00:48]} cxb5 {[%emt 0:00:06]} 43. Ra2 {[%emt 0:00:20]} Rh2+ {[%emt 0:00:48]} 44. Ke1 {[%emt 0:00:17]} Kd7 {[%emt 0:01:11]} 45. Ra5 {[%emt 0:00:24]} Rxd2 {[%emt 0:00:28]} 0-1

[Event "1st Caplin Menchik Memorial 2022"]
[Site "London"]
[Date "2022.06.24"]
[Round "7.1"]
[White "Koubova, Anna Marie"]
[Black "Yao, Lan"]
[Result "0-1"]
[ECO "A11"]
[WhiteElo "2115"]
[BlackElo "2276"]
[Annotator "NA RC"]
[PlyCount "82"]
[EventDate "2022.06.21"]
[EventType "tourn"]
[EventCountry "ENG"]
[SourceTitle "playchess.com"]
[Source "ChessBase"]
[SourceQuality "1"]
[TimeControl "5400+30"]

1. Nf3 {[%emt 0:00:36]} Nf6 {[%emt 0:00:04]} 2. c4 {[%emt 0:00:33]} e6 {[%emt 0:00:09]} 3. g3 {[%emt 0:00:23]} d5 {[%emt 0:00:24]} 4. cxd5 {[%emt 0:01:13]} exd5 {[%emt 0:01:06]} 5. Bg2 {[%emt 0:00:22]} Be7 {[%emt 0:03:17]} 6. O-O {[%emt 0:00:48]} c6 {[%emt 0:03:04]} 7. d3 {[%emt 0:01:58]} Bf5 {[%emt 0:01:03]} 8. Nh4 {[%emt 0:03:52]} Be6 {[%emt 0:07:55]} 9. e4 {[%emt 0:02:57]} Qc8 {[%emt 0:11:41]} 10. Re1 {[%emt 0:09:23]} dxe4 {[%emt 0:04:57]} 11. dxe4 {[%emt 0:00:27]} O-O {[%emt 0:00:48]} 12. Nc3 {[%emt 0:01:58]} Na6 {[%emt 0:11:45]} 13. Qe2 {[%emt 0:04:27]} Re8 {[%emt 0:02:23]} 14. b3 {[%emt 0:05:27]} Bg4 {[%emt 0:06:37]} 15. f3 {[%emt 0:03:53]} Be6 {[%emt 0:06:47]} 16. Kh1 {[%emt 0:06:15]} Nd7 {[%emt 0:06:28]} 17. Bb2 {[%emt 0:01:19]} Nf8 {[%emt 0:03:46]} 18. f4 {[%emt 0:02:56]} Bg4 {[%emt 0:05:11]} 19. Nf3 {[%emt 0:02:31]} Ne6 {[%emt 0:02:04]} 20. Nd1 {[%emt 0:09:49]} Nec5 {[%emt 0:00:50]} 21. Nf2 {[%emt 0:03:32]} Bd7 {[%emt 0:03:04]} 22. Rad1 {[%emt 0:02:59]} f6 {[%emt 0:01:24]} 23. e5 {[%emt 0:10:50]} Bf8 {[%emt 0:01:17]} 24. Qd2 {[%emt 0:05:10]} f5 {[%emt 0:03:10]} 25. Ba1 {[%emt 0:15:33]} Rd8 {[%emt 0:01:13]} 26. Nd4 {[%emt 0:02:37]} Be6 {[%emt 0:00:54]} 27. Qc2 {[%emt 0:01:13]} Nb4 {[%emt 0:00:46]} 28. Qb1 {[%emt 0:00:14]} g6 {[%emt 0:00:33]} 29. Nh3 {[%emt 0:00:56]} Be7 {[%emt 0:01:55]} 30. Ng1 {[%emt 0:00:14]} Nd5 {[%emt 0:01:52]} 31. Ngf3 {[%emt 0:00:29]} Nc7 {[%emt 0:00:58]} 32. b4 {[%emt 0:00:52]} Ne4 {[%emt 0:01:23]} 33. Qb2 {[%emt 0:00:25]} a5 {[%emt 0:00:35]} 34. b5 {[%emt 0:00:41]} cxb5 {[%emt 0:00:44]} 35. Nxe6 {[%emt 0:00:24]} Rxd1 {[%emt 0:01:44]} 36. Rxd1 {[%emt 0:00:08]} Nxe6 {[%emt 0:00:05]} 37. Nd4 {[%emt 0:00:26]} Bc5 {[%emt 0:03:13]} 38. Bxe4 {[%emt 0:01:04]} Bxd4 {[%emt 0:02:04]} 39. Rxd4 {[%emt 0:00:10]} fxe4 {[%emt 0:00:18]} 40. Rd6 {[%emt 0:00:43]} Qc4 {[%emt 0:00:16]} 41. Qd2 {[%emt 0:00:36]} Qf1# {[%emt 0:00:16]} 0-1

[Event "1st Caplin Menchik Memorial 2022"]
[Site "London"]
[Date "2022.06.24"]
[Round "7.2"]
[White "Dworakowska, Joanna"]
[Black "Vidic, Teja"]
[Result "1-0"]
[ECO "C54"]
[WhiteElo "2321"]
[BlackElo "2168"]
[Annotator "TA"]
[PlyCount "71"]
[EventDate "2022.06.21"]
[EventType "tourn"]
[EventCountry "ENG"]
[SourceTitle "playchess.com"]
[Source "ChessBase"]
[SourceQuality "1"]
[TimeControl "5400+30"]

{[%evp 16,70,26,20,18,11,6,21,29,8,37,0,23,26,14,0,0,0,0,0,22,-62,-82,-75,-76,-174,-181,-175,-103,-110,-110,-167,-40,-211,-34,-36,0,0,0,0,0,0,0,0,29990,-1251,29991,29992,29992,29993,29993,29994,29994,29995,29996,29997,29999]} 1. e4 {[%emt 0:02:16]} e5 {[%emt 0:00:05]} 2. Nf3 {[%emt 0:00:42]} Nc6 {[%emt 0:00:09]} 3. Bc4 {[%emt 0:00:50]} Bc5 {[%emt 0:00:11]} 4. c3 {[%emt 0:00:14]} Nf6 {[%emt 0:00:13]} 5. d4 {[%emt 0:00:19]} exd4 {[%emt 0:00:07]} 6. e5 {[%emt 0:00:40]} d5 {[%emt 0:00:49]} 7. Bb5 {[%emt 0:01:43]} Ne4 {[%emt 0:00:52]} 8. cxd4 {[%emt 0:00:24]} Bb4+ {[%emt 0:00:35]} 9. Bd2 {[%emt 0:10:32]} Bxd2+ {[%emt 0:15:24] C54: Giuoco Piano: 4 c3 Nf6, main lines with 5 d4 and 5 d3.} 10. Nfxd2 {[%emt 0:13:31]} O-O {[%emt 0:21:18]} (10... Qg5 {looks sharper.} 11. O-O Bh3 12. Qf3 Nxd2 13. Nxd2 Qxd2 14. Rfd1 Bxg2 15. Qxg2 Qf4) 11. Bxc6 {[%emt 0:12:50]} bxc6 {[%emt 0:13:07] [#] The position is equal.} 12. O-O $146 {[%emt 0:00:56]} ({Predecessor:} 12. Qc2 Nxd2 13. Nxd2 Bd7 14. O-O Qe7 15. Nb3 Rfb8 16. Rac1 Rb6 17. Nc5 Rab8 18. b3 {1-0 (26) Mangei,J (1872)-Voss,H (1432) Osnabrueck 2015}) 12... Rb8 {[%emt 0:05:45]} 13. Nb3 {[%emt 0:03:00]} (13. f3 $5 {[%cal Rf3e4]} Nxd2 14. Qxd2 $11) 13... f6 {[%emt 0:02:03] Hoping for ...Ba6.} (13... Ba6 $5 {[%cal Ra6f1]} 14. Re1 Qh4 $11) 14. f3 {[%emt 0:06:48]} Ng5 {[%emt 0:00:11]} 15. Nc3 {[%emt 0:01:33]} fxe5 {[%emt 0:02:44]} 16. dxe5 {[%emt 0:00:37]} Ne6 {[%emt 0:02:57]} 17. Qd2 {[%emt 0:08:57]} d4 {[%emt 0:01:52]} 18. Ne2 {[%emt 0:01:29]} (18. Ne4 $11) 18... c5 $15 {[%emt 0:02:00]} 19. Rac1 {[%emt 0:02:26]} Qd5 {[%emt 0:01:47]} 20. f4 {[%emt 0:06:35]} (20. Rfd1 $17 {keeps fighting.}) 20... Bb7 $19 {[%emt 0:01:24][%csl Gb7][%cal Rd5g2]} 21. Rf2 {[%emt 0:01:20]} Rbd8 {[%emt 0:08:33]} (21... Rf7 $19 22. h4 g6) 22. Na5 $17 {[%emt 0:03:08] [#]} Ba8 {[%emt 0:00:56]} 23. h4 {[%emt 0:01:56]} (23. Qd3 $17) 23... Qe4 {[%emt 0:06:03]} (23... Qxa2 24. f5 $11) ({Black should play} 23... Rd7 $19 {Strongly threatening ...h6.} 24. Rcf1 Rdf7) 24. Kh2 $2 {[%emt 0:10:46] [#]} (24. Ng3 $15 Qg6 25. f5 Qxg3 26. fxe6 Qxh4 27. Nb3 (27. Rxc5 d3 $17)) 24... d3 $2 {[%emt 0:03:14]} (24... Qxe5 $1 $19 {[%cal Od4d3][%mdl 512] Threatens to win with ...d3!} 25. Rcf1 (25. fxe5 $2 {is the wrong capture.} Rxf2 26. Rg1 d3 $19) 25... Qh5) 25. Ng3 $15 {[%emt 0:01:43]} Qg6 {[%emt 0:06:09] And now ...Qh6 would win.} 26. f5 {[%emt 0:00:39]} Qg4 {[%emt 0:00:15]} 27. fxe6 {[%emt 0:00:15]} Rxf2 {[%emt 0:00:24]} (27... Qxh4+ $2 28. Kg1 Rxf2 29. Qxf2 $18) 28. Qxf2 {[%emt 0:00:17] Black must now prevent Qf7+. Chess con chili.} d2 {[%emt 0:00:06]} 29. Rd1 {[%emt 0:05:26]} Qxd1 $4 {[%emt 0:00:34][%mdl 8192]} (29... Rf8 $11 30. Qxd2 (30. e7 Qxh4+ 31. Kg1 Rxf2 $17) 30... Qxh4+ 31. Kg1 Qxg3) 30. Qf7+ {[%emt 0:00:18]} Kh8 {[%emt 0:00:06] aiming for ...Qg4.} 31. e7 {[%emt 0:00:05][%cal Re7d8] White mates.} Qg1+ {[%emt 0:03:57]} 32. Kxg1 {[%emt 0:00:03][%cal Re7d8]} d1=Q+ {[%emt 0:00:07]} 33. Kh2 {[%emt 0:00:04] Active counter play!} h6 {[%emt 0:01:14]} 34. Nf5 {[%emt 0:02:21][%csl Gf5][%cal Rf7g7] Pair of Knights!} Rg8 {[%emt 0:00:58]} 35. e8=Q {[%emt 0:00:10][%mdl 64] Discovered Attack, Overworked Piece} Rxe8 {[%emt 0:00:20]} 36. Qxg7# {[%emt 0:00:59] Quite a comeback for White.  Weighted Error Value: White=0.25 (precise) /Black=0.39} 1-0

[Event "1st Caplin Menchik Memorial 2022"]
[Site "London"]
[Date "2022.06.24"]
[Round "7.3"]
[White "Schulze, Lara"]
[Black "Hunt, Harriet V"]
[Result "1/2-1/2"]
[ECO "B43"]
[WhiteElo "2303"]
[BlackElo "2395"]
[Annotator "TA"]
[PlyCount "33"]
[EventDate "2022.06.21"]
[EventType "tourn"]
[EventCountry "ENG"]
[SourceTitle "playchess.com"]
[Source "ChessBase"]
[SourceQuality "1"]
[TimeControl "5400+30"]

{[%evp 17,33,8,2,19,41,41,30,30,28,43,27,14,15,0,36,0,15,0]} 1. e4 {[%emt 0:00:03]} c5 {[%emt 0:02:02]} 2. Nc3 {[%emt 0:00:24]} a6 {[%emt 0:00:32]} 3. g3 {[%emt 0:00:38]} b5 {[%emt 0:00:17]} 4. Bg2 {[%emt 0:00:35]} Bb7 {[%emt 0:00:24]} 5. Nf3 {[%emt 0:00:38]} e6 {[%emt 0:09:51]} 6. d4 {[%emt 0:00:22]} cxd4 {[%emt 0:01:32]} 7. Nxd4 {[%emt 0:00:09]} Nf6 {[%emt 0:01:41]} 8. a3 {[%emt 0:00:37]} Qc7 {[%emt 0:05:56]} 9. O-O {[%emt 0:01:24]} d6 {[%emt 0:05:31]} 10. Re1 {[%emt 0:00:23][%cal Oc3d5] White wants to play Nd5! B43: Sicilian: Kan Variation: 5 Nc3.} Be7 {[%emt 0:03:41]} 11. a4 {[%emt 0:01:01]} bxa4 {[%emt 0:05:02]} 12. Rxa4 {[%emt 0:00:42] Threatens to win with Rb4. White has an edge.} Nbd7 {[%emt 0:02:57][%cal Bb8d7,Bd7b6,Bb6c4][%mdl 32]} 13. Nb3 $1 {[%emt 0:12:09]} Nb6 {[%emt 0:09:36] [#]} 14. Ra2 $146 {[%emt 0:06:06]} ({Predecessor:} 14. Rb4 e5 15. Na4 Nxa4 16. Rxa4 Bc6 17. Rc4 Qd7 18. Rc3 O-O 19. Na5 Bb5 20. Nc4 Qe6 21. Ne3 g6 22. h4 {½-½ (50) Pert,R (2430)-Eggleston,D (2399) Torquay 2019}) 14... Nc4 $1 {[%emt 0:05:59] Prevents Na5.} 15. Ra4 {[%emt 0:21:11]} Nb6 {[%emt 0:07:46]} 16. Ra2 {[%emt 0:01:07]} Nc4 $1 {[%emt 0:00:35] Inhibits Na5.} 17. Ra4 {[%emt 0:01:33] Weighted Error Value: White=0.07 (flawless) /Black=0.02 (flawless)} 1/2-1/2

[Event "1st Caplin Menchik Memorial 2022"]
[Site "London"]
[Date "2022.06.24"]
[Round "7.4"]
[White "Arakhamia-Grant, Ketevan"]
[Black "Varney, Zoe"]
[Result "1-0"]
[ECO "C90"]
[WhiteElo "2354"]
[BlackElo "2046"]
[Annotator "TA"]
[PlyCount "75"]
[EventDate "2022.06.21"]
[EventType "tourn"]
[EventCountry "ENG"]
[SourceTitle "playchess.com"]
[Source "ChessBase"]
[SourceQuality "1"]
[TimeControl "5400+30"]

{[%evp 27,74,6,0,0,0,0,0,0,0,0,0,0,0,0,0,-15,-10,-9,-14,-50,-35,-71,-82,-89,-47,-85,-14,-10,-10,-10,-14,-3,0,-4,0,0,475,475,518,516,508,488,489,457,29993,29994,29998,29999,29999]} 1. e4 {[%emt 0:03:21]} e5 {[%emt 0:00:07]} 2. Nf3 {[%emt 0:00:17]} Nc6 {[%emt 0:00:05]} 3. Bb5 {[%emt 0:00:15]} a6 {[%emt 0:00:04]} 4. Ba4 {[%emt 0:00:04]} Nf6 {[%emt 0:00:05]} 5. O-O {[%emt 0:00:11]} Be7 {[%emt 0:00:12]} 6. d3 {[%emt 0:01:26]} b5 {[%emt 0:01:01]} 7. Bb3 {[%emt 0:00:05]} d6 {[%emt 0:00:05]} 8. c3 {[%emt 0:00:11]} O-O {[%emt 0:02:21]} 9. Re1 {[%emt 0:00:20]} Na5 {[%emt 0:00:52]} 10. Bc2 {[%emt 0:00:07]} c5 {[%emt 0:00:16]} 11. Nbd2 {[%emt 0:00:17]} Nc6 {[%emt 0:00:26]} 12. Nf1 {[%emt 0:00:13]} h6 {[%emt 0:01:47]} 13. Ng3 {[%emt 0:00:35]} Re8 {[%emt 0:00:39]} 14. h3 {[%emt 0:05:32]} Be6 {[%emt 0:01:46]} 15. d4 {[%emt 0:01:48] C90: Closed Ruy Lopez with 7...d6: Early deviations.} cxd4 {[%emt 0:01:44]} 16. cxd4 {[%emt 0:00:06]} exd4 {[%emt 0:00:52]} 17. Nxd4 {[%emt 0:01:39] The position is equal.} Nxd4 {[%emt 0:00:13]} 18. Qxd4 {[%emt 0:00:05]} Rc8 {[%emt 0:01:11]} 19. Bb3 {[%emt 0:19:51]} d5 {[%emt 0:01:29][%cal Bd6d5,Bd5d4,Bd4d3][%mdl 32]} 20. e5 {[%emt 0:00:36]} Nd7 {[%emt 0:00:28]} 21. Be3 {[%emt 0:02:39]} Bc5 {[%emt 0:08:06]} 22. Qd1 {[%emt 0:08:21]} d4 {[%emt 0:11:19]} 23. Bf4 {[%emt 0:00:33]} Qb6 {[%emt 0:18:26] [#]} 24. Qh5 $146 {[%emt 0:22:01]} ({Predecessor:} 24. Qf3 g5 25. Bd2 Bxb3 26. axb3 Nxe5 27. Qh5 d3 28. Ne4 Bd4 29. Be3 Re6 30. Rad1 {0-1 (53) Puranik,A (2550)-Arjun,K (2482) Barcelona 2019}) 24... d3 {[%emt 0:13:07]} 25. Ne4 {[%emt 0:00:16]} Bb4 {[%emt 0:12:30]} 26. Nd6 {[%emt 0:25:03] Bxe6 is the strong threat.} Bxe1 {[%emt 0:10:35]} ({Black should try} 26... Bxb3 $17 27. axb3 Bxd6 28. exd6 Qd4) 27. Rxe1 $11 {[%emt 0:00:29] Hoping for Bxe6. Dancing on a razor blade.} (27. Be3 {looks sharper.} Qc7 28. Bxe6 Nxe5 29. Nxe8 Rxe8 30. Rc1) 27... Bxb3 {[%emt 0:00:28]} (27... Qa5 $2 28. Rd1 Bxb3 29. axb3 $18) 28. axb3 {[%emt 0:04:23] [#]} Qxd6 $1 {[%emt 0:03:42]} 29. exd6 {[%emt 0:00:07]} Rxe1+ {[%emt 0:00:03]} 30. Kh2 {[%emt 0:00:04]} Rc2 {[%emt 0:04:53]} 31. Qg4 {[%emt 0:01:39][%csl LRd7,LRh6] Black must now prevent Bxh6.} Nf6 $2 {[%emt 0:02:06][%mdl 8192]} (31... Rxf2 $2 32. Bxh6 g6 33. Qxd7 $18) (31... g5 $11 32. Qxd7 gxf4 33. Qg4+ Kf8) 32. d7 $18 {[%emt 0:00:15]} Nxg4+ {[%emt 0:03:56]} 33. hxg4 {[%emt 0:00:05]} Rd1 {[%emt 0:00:09]} 34. d8=Q+ {[%emt 0:00:29]} Kh7 {[%emt 0:00:07]} 35. Qd4 {[%emt 0:00:36]} g6 {[%emt 0:01:40]} (35... f6 $18 36. Kg3 Kh8) 36. Qf6 {[%emt 0:00:53][%csl LRa6,LRf7] White mates.} d2 {[%emt 0:00:32]} 37. Qxf7+ {[%emt 0:00:11]} Kh8 {[%emt 0:00:03]} 38. Be5# {[%emt 0:00:05] Weighted Error Value: White=0.10 (very precise) /Black=0.73} 1-0

[Event "1st Caplin Menchik Memorial 2022"]
[Site "London"]
[Date "2022.06.24"]
[Round "7.5"]
[White "Toma, Katarzyna"]
[Black "Hryshchenko, Kamila"]
[Result "0-1"]
[ECO "B09"]
[WhiteElo "2304"]
[BlackElo "2037"]
[Annotator "TA"]
[PlyCount "72"]
[EventDate "2022.06.21"]
[EventType "tourn"]
[EventCountry "ENG"]
[SourceTitle "playchess.com"]
[Source "ChessBase"]
[SourceQuality "1"]
[TimeControl "5400+30"]

{[%evp 16,72,28,26,56,54,59,47,41,37,41,28,14,10,8,26,17,0,0,-24,-33,-33,-30,-83,-98,-84,-95,-83,-58,-134,-131,-267,0,0,0,-118,-108,-165,-160,-167,-134,-188,-189,-294,-183,-218,-194,-189,-183,-239,-234,-628,-589,-885,-587,-1364,-1341,-29976,-29976]} 1. e4 {[%emt 0:00:04]} g6 {[%emt 0:02:53]} 2. d4 {[%emt 0:00:08]} Bg7 {[%emt 0:00:10]} 3. Nc3 {[%emt 0:00:09]} d6 {[%emt 0:00:06]} 4. f4 {[%emt 0:00:12]} Nf6 {[%emt 0:00:12]} 5. Nf3 {[%emt 0:00:11]} O-O {[%emt 0:01:26]} 6. Bd3 {[%emt 0:01:16]} c5 {[%emt 0:02:09]} 7. d5 {[%emt 0:01:14]} Na6 $1 {[%emt 0:01:19][%mdl 4] is now more promising than 7...e6.} 8. Qe2 {[%emt 0:02:22]} Rb8 {[%emt 0:01:31]} 9. O-O {[%emt 0:01:09]} Nc7 {[%emt 0:04:01][%cal Ob7b5] B09: Pirc Defence: Austrian Attack.} 10. a4 $1 {[%emt 0:00:34] Prevents b5.} Bd7 {[%emt 0:04:25] [#]} 11. Kh1 $146 {[%emt 0:07:40]} ({Predecessor:} 11. Re1 a6 12. a5 e6 13. dxe6 fxe6 14. e5 Nfd5 15. Nxd5 Nxd5 16. exd6 Nxf4 17. Bxf4 Rxf4 {½-½ (43) Cursoux,G (1870)-Frey,T (1840) Loire 2013}) 11... Qc8 {[%emt 0:05:54] White is slightly better.} 12. Bc4 {[%emt 0:04:30]} b6 {[%emt 0:06:06]} 13. e5 {[%emt 0:03:09]} Nfe8 {[%emt 0:00:17]} 14. Ng5 {[%emt 0:03:38]} Bg4 {[%emt 0:01:10]} 15. Qe1 {[%emt 0:01:28]} h6 {[%emt 0:00:40]} 16. Nge4 {[%emt 0:01:57]} a6 {[%emt 0:02:09]} 17. Qh4 {[%emt 0:05:07] Threatens to win with f5.} b5 $1 {[%emt 0:03:18]} 18. axb5 {[%emt 0:00:07]} axb5 {[%emt 0:00:04]} 19. Be2 {[%emt 0:05:57]} (19. Bd3 $11 b4 20. Nd1) 19... Bxe2 $17 {[%emt 0:00:57]} 20. Nxe2 {[%emt 0:00:05] [#]} f5 $1 {[%emt 0:07:45]} 21. exf6 {[%emt 0:16:02]} Nxf6 {[%emt 0:01:01]} 22. f5 {[%emt 0:17:18]} (22. Nxf6+ $15 exf6 23. f5) 22... Nxe4 {[%emt 0:07:54]} 23. Bxh6 {[%emt 0:00:07]} (23. Qxe4 $17 Rxf5 24. Bd2) 23... Rxf5 $2 {[%emt 0:33:48]} 24. Bxg7 $11 {[%emt 0:01:45]} Nxd5 {[%emt 0:01:02]} 25. Qxe4 {[%emt 0:16:01]} (25. Qh6 Nf2+ 26. Kg1 Rh5 27. Qxg6 Qg4 28. Qxg4 Nxg4 $17) (25. Rxf5 $11 {keeps the balance.} Qxf5 26. Qh8+ Kf7 27. Qxb8 Kxg7 28. Qxb5) 25... Kxg7 $17 {[%emt 0:00:17]} 26. Ng3 {[%emt 0:01:22] [#]} (26. Ng1 $17) 26... Re5 $1 $19 {[%emt 0:00:40]} ({Of course not} 26... Rxf1+ $6 27. Rxf1 e6 28. b4 $14 (28. Qf3 Qe8 $11)) 27. Qf3 {[%emt 0:01:05]} Nf6 {[%emt 0:00:58]} 28. Ra7 {[%emt 0:00:54]} (28. Rae1 $17) 28... Qe6 {[%emt 0:00:40]} 29. h3 {[%emt 0:06:43]} (29. Raa1 $142) 29... Rh8 {[%emt 0:01:11][%cal Bb8h8,Bh8h4,Bh4d4,Bd4f4][%mdl 32]} 30. Kg1 {[%emt 0:00:22]} Rh4 {[%emt 0:00:42]} 31. Qf2 {[%emt 0:01:00]} Rd4 {[%emt 0:02:55]} 32. Rb7 {[%emt 0:00:37]} (32. Raa1 {was called for.}) 32... b4 {[%emt 0:00:22] White must now prevent ...Re3.} 33. b3 $2 {[%emt 0:00:06]} (33. Ra7) 33... Re3 {[%emt 0:02:10]} 34. Ra1 {[%emt 0:01:22]} Qe5 {[%emt 0:02:34] Hoping for ...Nd5.} 35. Raa7 {[%emt 0:00:55]} Nd5 {[%emt 0:00:18]} 36. Rb8 {[%emt 0:00:44]} Rf4 {[%emt 0:00:38] Weighted Error Value: White=0.95/Black=0.23 (precise)} 0-1

[Event "1st Caplin Menchik Memorial 2022"]
[Site "London"]
[Date "2022.06.25"]
[Round "8.1"]
[White "Yao, Lan"]
[Black "Hryshchenko, Kamila"]
[Result "1-0"]
[ECO "B08"]
[WhiteElo "2276"]
[BlackElo "2037"]
[Annotator "TA"]
[PlyCount "25"]
[EventDate "2022.06.21"]
[EventType "tourn"]
[EventCountry "ENG"]
[SourceTitle "playchess.com"]
[Source "ChessBase"]
[SourceQuality "1"]
[TimeControl "5400+30"]

{[%evp 11,25,12,18,17,34,47,43,41,58,43,45,1,168,157,169,177]} 1. e4 {[%emt 0:00:02]} g6 {[%emt 0:00:09]} 2. d4 {[%emt 0:00:03]} Bg7 {[%emt 0:00:06]} 3. Nc3 {[%emt 0:00:03]} d6 {[%emt 0:00:06]} 4. Nf3 {[%emt 0:00:05]} a6 {[%emt 0:00:29]} 5. Be3 {[%emt 0:00:10]} Nf6 {[%emt 0:00:58]} 6. h3 {[%emt 0:00:38]} O-O {[%emt 0:00:41]} 7. Be2 {[%emt 0:00:24] B08: Pirc Defence: Classical System.} b5 {[%emt 0:01:11]} 8. e5 {[%emt 0:00:05]} Nfd7 {[%emt 0:02:03][%cal Rd6e5]} 9. e6 {[%emt 0:00:34] White is slightly better.} fxe6 {[%emt 0:01:27] [#]} 10. h4 $146 {[%emt 0:00:30]} (10. Ng5 $5 {[%cal Rg5e6]} Nf6 11. Bg4 $11) ({Predecessor:} 10. Ng5 Nb6 11. Bg4 Rf5 12. Bxf5 exf5 13. O-O h6 14. Nf3 Qf8 15. a4 b4 16. Ne2 {½-½ (40) Ivanov,A (2507)-Nyvlt,Z (2434) ICCF email 2015}) 10... Nf6 {[%emt 0:08:44]} 11. h5 {[%emt 0:00:13]} c5 $2 {[%emt 0:11:15] [#]} (11... Nxh5 $11 {and Black is okay.} 12. Ng5 h6) 12. hxg6 $1 $18 {[%emt 0:06:13]} ({But not} 12. dxc5 gxh5 13. Qd2 Bb7 $11) 12... hxg6 {[%emt 0:00:07]} 13. dxc5 {[%emt 0:22:13] Weighted Error Value: White=0.02 (flawless) /Black=0.41} 1-0

[Event "1st Caplin Menchik Memorial 2022"]
[Site "London"]
[Date "2022.06.25"]
[Round "8.2"]
[White "Varney, Zoe"]
[Black "Toma, Katarzyna"]
[Result "0-1"]
[ECO "B33"]
[WhiteElo "2046"]
[BlackElo "2304"]
[Annotator "TA"]
[PlyCount "68"]
[EventDate "2022.06.21"]
[EventType "tourn"]
[EventCountry "ENG"]
[SourceTitle "playchess.com"]
[Source "ChessBase"]
[SourceQuality "1"]
[TimeControl "5400+30"]

{[%evp 21,68,31,39,40,83,75,146,111,113,41,46,41,100,11,35,-27,73,64,128,0,0,0,79,77,110,105,112,89,251,265,248,187,687,-500,-495,-539,-534,-687,-665,-658,-650,-1137,-775,-914,-900,-1663,-1508,-29990,-29991]} 1. e4 c5 2. Nf3 {[%cal Bg1f3,Bf3d4,Bd4b5][%mdl 32]} Nc6 3. d4 cxd4 4. Nxd4 Nf6 5. Nc3 e5 6. Ndb5 d6 7. Nd5 Nxd5 8. exd5 Ne7 9. c4 Nf5 10. Bd3 Be7 {10...g6 is more advanced technology.} 11. O-O O-O 12. f4 {B33: Sicilian: Pelikan and Sveshnikov Variations.} Qb6+ 13. Kh1 {Strongly threatening fxe5.} Ne3 (13... a6 $142 14. Nc3 f6) 14. Bxe3 $16 {White is clearly better.} Qxe3 15. f5 {[#]} (15. Qc2 $16) 15... Bd7 $146 ({Predecessor:} 15... a6 16. f6 Bxf6 17. Nxd6 e4 18. Rxf6 exd3 19. Rf3 Qe5 20. Nxc8 Raxc8 21. b3 b5 {½-½ (38) Tronenkovs,V (2265)-Dejmek,M (2018) Chess.com INT 2021}) 16. Rf3 Qh6 (16... Qb6 $1 $14) 17. Rh3 (17. Nc3 $1 $16) 17... Qg5 $11 18. Qc2 ({Better is} 18. Qf1 $14) 18... g6 (18... Bxb5 $11 {remains equal.} 19. f6 g6 20. fxe7 Rfc8) 19. Rg3 $36 {[%mdl 2048] White has some pressure.} Qh5 ({Black should try} 19... Qh4 $14) 20. Rh3 (20. Nc3 $16) 20... Qg5 $11 21. Rg3 Qh6 (21... Qh5 $1 $11) 22. Nc3 $16 Kh8 23. Rf1 Rac8 24. b3 Qh4 $2 {[#]} (24... b5 $16 {keeps fighting.}) 25. Rh3 $1 $18 Qd4 26. Qc1 {[%cal Oc1h6] White threatens Qh6! and mate.} Rg8 $2 {[#]} (26... e4 27. Bxe4 Qg7) 27. Rxh7+ $4 {[%mdl 8192]} Kxh7 $19 28. fxg6+ fxg6 29. Rf7+ Rg7 30. Rf3 Rf8 31. Rg3 Bf5 32. Be2 Rgf7 {[%cal Of5g4] Threatens to win with ...Bg4!} 33. Nb5 Qf2 {( -> ...Bg4)} 34. Qd1 Be4 {Weighted Error Value: White=1.03/Black=0.73} 0-1